bitfinex/quotes_SOLUSD_20251118
["timestamp","ask_amount","ask_price","bid_price","bid_amount"]
[1763504059364,18.12096,140.85,140.82,3.50698141]
[1763504059758,4.22,140.87,140.84,3.50698141]
[1763504059759,0.66,140.87,140.84,3.50698141]
[1763504060768,0.66,140.87,140.85,3.50698141]
[1763504061158,0.66,140.87,140.83,0.21]
[1763504061368,0.66,140.87,140.85,3.50698141]
[1763504062871,0.66,140.87,140.84,3.50698141]
[1763504063787,0.66,140.87,140.82,0.21]
[1763504063987,0.66,140.87,140.84,3.50698141]
[1763504065793,0.66,140.87,140.81,20.97662381]
[1763504065990,0.66,140.87,140.84,3.50698141]
[1763504067599,0.66,140.87,140.82,0.21]
[1763504067793,0.66,140.87,140.83,3.50698141]
[1763504068790,18.78096,140.87,140.82,3.50698141]
[1763504068971,3.50698141,140.86,140.8,3.50698141]
[1763504069176,4.20698141,140.86,140.8,7.72698141]
[1763504069487,4.20698141,140.85,140.8,7.72698141]
[1763504069784,18.12096,140.84,140.78,3.71698141]
[1763504069983,0.7,140.83,140.79,3.50698141]
[1763504070367,0.7,140.83,140.8,3.50698141]
[1763504072399,0.7,140.83,140.79,3.50698141]
[1763504072564,0.7,140.83,140.78,3.71698141]
[1763504073073,0.7,140.83,140.78,3.50698141]
[1763504073396,4.20698141,140.83,140.77,7.93698141]
[1763504073596,0.7,140.83,140.77,7.93698141]
[1763504073890,0.7,140.82,140.78,3.50698141]
[1763504075106,0.7,140.82,140.77,24.74439121]
[1763504075273,0.7,140.82,140.78,3.50698141]
[1763504075701,0.7,140.82,140.78,3.71698141]
[1763504077280,0.7,140.82,140.78,3.50698141]
[1763504077981,0.7,140.82,140.77,25.4574098]
[1763504077982,0.7,140.84,140.79,3.71698141]
[1763504078172,0.7,140.83,140.79,3.71698141]
[1763504079393,0.7,140.83,140.77,25.4574098]
[1763504079584,0.7,140.83,140.78,3.50698141]
[1763504080099,0.7,140.83,140.78,3.71698141]
[1763504080788,0.7,140.83,140.78,2.45352424]
[1763504083597,0.7,140.83,140.79,21.35611318]
[1763504084699,0.7,140.83,140.79,23.59963742]
[1763504085122,0.7,140.83,140.79,21.35611318]
[1763504086000,0.7,140.83,140.79,25.57611318]
[1763504092112,0.7,140.83,140.79,27.81963742]
[1763504092910,0.7,140.83,140.79,23.59963742]
[1763504093093,0.7,140.83,140.8,4.22]
[1763504094606,0.7,140.83,140.8,6.46352424]
[1763504095002,0.7,140.83,140.8,27.81963742]
[1763504096300,0.7,140.83,140.81,2.24352424]
[1763504096494,18.83096,140.85,140.82,2.24352424]
[1763504096720,18.83096,140.85,140.83,2.24352424]
[1763504096922,18.83096,140.85,140.83,6.46352424]
[1763504097114,0.71,140.85,140.84,2.24352424]
[1763504097409,0.71,140.87,140.84,20.57448424]
[1763504097596,0.81,140.88,140.85,2.24352424]
[1763504097796,18.93096,140.88,140.85,2.24352424]
[1763504098005,0.71,140.87,140.85,2.24352424]
[1763504098992,0.71,140.87,140.84,18.12096]
[1763504099216,0.71,140.87,140.85,2.24352424]
[1763504100605,0.1,140.88,140.86,6.67352424]
[1763504100818,0.1,140.88,140.87,6.46352424]
[1763504100993,0.1,140.88,140.87,6.67352424]
[1763504101520,0.1,140.88,140.87,6.46352424]
[1763504101897,0.1,140.88,140.87,6.67352424]
[1763504102706,0.1,140.88,140.87,6.46352424]
[1763504107027,0.1,140.88,140.87,9.30938529]
[1763504108737,0.81,140.88,140.87,9.30938529]
[1763504109038,0.81,140.88,140.87,7.06586105]
[1763504109215,0.81,140.88,140.87,2.84586105]
[1763504109752,3.05352424,140.88,140.8,0.21]
[1763504110032,0.81,140.88,140.84,2.24352424]
[1763504110248,0.71,140.87,140.84,2.24352424]
[1763504111632,0.71,140.87,140.83,2.84687377]
[1763504111633,21.07448424,140.87,140.83,2.84687377]
[1763504111839,0.71,140.86,140.81,6.46352424]
[1763504112031,2.95352424,140.86,140.82,2.84687377]
[1763504112227,0.71,140.85,140.82,2.84687377]
[1763504112745,2.95352424,140.85,140.82,2.84687377]
[1763504112915,2.95352424,140.85,140.81,4.22]
[1763504113236,0.68,140.84,140.81,4.22]
[1763504113608,0.68,140.84,140.8,8.44]
[1763504114337,0.68,140.84,140.8,4.22]
[1763504114540,0.68,140.84,140.8,8.44]
[1763504114737,2.92352424,140.84,140.8,8.44]
[1763504114937,2.24352424,140.83,140.8,4.22]
[1763504115239,2.92352424,140.83,140.79,4.22]
[1763504115437,0.68,140.82,140.79,4.22]
[1763504116039,2.24352424,140.81,140.75,2.24352424]
[1763504116223,2.24352424,140.81,140.76,4.22]
[1763504116425,21.04448424,140.8,140.76,22.34096]
[1763504116637,2.92352424,140.8,140.76,4.22]
[1763504116826,0.68,140.79,140.76,4.22]
[1763504117631,0.68,140.79,140.75,25.26448424]
[1763504117826,2.92352424,140.79,140.75,4.22]
[1763504118139,2.24352424,140.78,140.75,4.22]
[1763504118341,2.92352424,140.78,140.75,4.22]
[1763504118522,0.68,140.77,140.74,18.12096]
[1763504118724,0.68,140.77,140.73,2.24352424]
[1763504119039,0.68,140.77,140.73,4.22]
[1763504119246,2.92352424,140.77,140.73,4.22]
[1763504119627,2.92352424,140.76,140.73,4.22]
[1763504119822,2.92352424,140.76,140.72,4.22]
[1763504120022,0.68,140.75,140.72,8.44]
[1763504121132,0.68,140.75,140.72,4.22]
[1763504121639,0.68,140.75,140.7,4.22]
[1763504121640,21.04448424,140.75,140.7,4.22]
[1763504122030,0.69,140.74,140.7,12.66]
[1763504122716,2.93352424,140.74,140.7,12.66]
[1763504122913,2.93352424,140.74,140.7,4.22]
[1763504123118,2.24352424,140.72,140.7,4.22]
[1763504123313,0.69,140.71,140.7,4.22]
[1763504123515,0.69,140.76,140.71,0.21]
[1763504123714,4.91,140.8,140.75,2.24352424]
[1763504123947,9.78882769,140.84,140.76,2.24352424]
[1763504123948,2.24352424,140.82,140.76,2.24352424]
[1763504124137,12.03235193,140.82,140.76,2.24352424]
[1763504124340,0.69,140.81,140.77,2.24352424]
[1763504124523,0.69,140.81,140.78,2.24352424]
[1763504124727,0.69,140.81,140.77,2.24352424]
[1763504125044,18.12096,140.8,140.77,2.24352424]
[1763504125232,18.12096,140.8,140.76,6.46352424]
[1763504125414,0.69,140.79,140.77,2.24352424]
[1763504126919,0.69,140.79,140.76,2.24352424]
[1763504127850,0.69,140.79,140.75,4.22]
[1763504128026,0.69,140.79,140.76,2.24352424]
[1763504128386,2.24352424,140.77,140.74,8.97409696]
[1763504128520,2.24352424,140.76,140.7,2.24352424]
[1763504128725,0.69,140.76,140.72,2.24352424]
[1763504128946,0.69,140.75,140.71,4.22]
[1763504129246,0.69,140.75,140.71,6.46352424]
[1763504130246,0.69,140.75,140.71,4.22]
[1763504130645,2.24352424,140.73,140.7,9.18409696]
[1763504130865,2.24352424,140.71,140.7,9.18409696]
[1763504131140,0.69,140.71,140.68,4.22]
[1763504131346,9.78882769,140.76,140.68,4.22]
[1763504131347,2.93352424,140.7,140.68,4.22]
[1763504131737,0.69,140.69,140.65,4.22]
[1763504131923,0.69,140.69,140.65,13.40409696]
[1763504132118,2.93352424,140.69,140.65,13.40409696]
[1763504132428,2.93352424,140.69,140.65,4.22]
[1763504132429,0.69,140.69,140.65,4.22]
[1763504132635,0.69,140.68,140.64,2.44352424]
[1763504132847,0.69,140.68,140.64,19.45863548]
[1763504133027,0.69,140.68,140.65,4.22]
[1763504133231,6.54453852,140.68,140.65,4.22]
[1763504133423,0.69,140.68,140.65,4.22]
[1763504133622,5.85453852,140.69,140.65,4.22]
[1763504133837,0.69,140.68,140.65,4.22]
[1763504134641,27.90978769,140.73,140.65,10.28453852]
[1763504134846,0.69,140.7,140.66,5.85453852]
[1763504135017,0.69,140.7,140.67,5.85453852]
[1763504135945,0.69,140.7,140.66,18.12096]
[1763504136150,0.69,140.7,140.66,23.97549852]
[1763504137032,0.69,140.7,140.67,4.22]
[1763504138447,18.12096,140.72,140.67,10.07453852]
[1763504138650,18.81096,140.72,140.69,5.85453852]
[1763504139233,0.69,140.71,140.69,5.85453852]
[1763504141351,5.85453852,140.75,140.69,5.85453852]
[1763504141744,0.69,140.74,140.69,5.85453852]
[1763504142451,0.69,140.74,140.7,5.85453852]
[1763504142669,0.69,140.74,140.71,5.85453852]
[1763504142853,0.69,140.74,140.71,9.7767337]
[1763504143169,0.67,140.76,140.72,9.7767337]
[1763504143350,0.67,140.75,140.72,9.7767337]
[1763504143729,0.67,140.75,140.73,9.7767337]
[1763504145336,0.67,140.75,140.74,9.7767337]
[1763504147955,23.01096,140.77,140.74,9.7767337]
[1763504148138,18.79096,140.77,140.75,9.7767337]
[1763504148746,18.12096,140.77,140.75,9.7767337]
[1763504148957,0.67,140.8,140.76,9.7767337]
[1763504149160,0.67,140.79,140.77,9.7767337]
[1763504149357,18.79096,140.79,140.76,9.7767337]
[1763504149964,0.67,140.78,140.76,9.7767337]
[1763504152671,0.67,140.78,140.77,9.7767337]
[1763504152966,0.67,140.78,140.77,3.50642971]
[1763504154364,0.67,140.8,140.77,3.50642971]
[1763504154663,0.67,140.8,140.78,3.50642971]
[1763504155778,0.67,140.8,140.76,3.50642971]
[1763504156068,0.67,140.8,140.76,13.2952574]
[1763504156242,0.67,140.8,140.77,3.50642971]
[1763504156639,0.67,140.8,140.76,13.2952574]
[1763504156844,0.67,140.8,140.76,3.50642971]
[1763504157747,18.12096,140.78,140.75,13.2952574]
[1763504157964,4.22,140.79,140.75,3.50642971]
[1763504158248,0.67,140.78,140.77,3.50642971]
[1763504158669,0.67,140.79,140.77,3.50642971]
[1763504158841,0.67,140.79,140.78,3.50642971]
[1763504159047,0.67,140.79,140.77,3.50642971]
[1763504159274,0.67,140.79,140.78,3.50642971]
[1763504159576,0.67,140.79,140.77,3.50642971]
[1763504160370,0.67,140.79,140.76,3.50642971]
[1763504161771,0.67,140.79,140.75,4.22]
[1763504161772,0.67,140.79,140.77,3.50642971]
[1763504162674,0.67,140.79,140.75,4.22]
[1763504162877,0.67,140.79,140.77,3.50642971]
[1763504164864,0.67,140.79,140.76,3.50642971]
[1763504165204,18.12096,140.78,140.76,3.50642971]
[1763504165568,4.22,140.8,140.74,17.7252574]
[1763504165569,0.67,140.77,140.74,17.7252574]
[1763504165769,0.67,140.77,140.75,3.50642971]
[1763504167655,0.67,140.77,140.76,3.50642971]
[1763504168671,0.67,140.77,140.75,3.50642971]
[1763504168873,0.67,140.77,140.76,3.50642971]
[1763504169559,0.67,140.79,140.76,3.50642971]
[1763504169758,0.67,140.79,140.78,3.50642971]
[1763504170981,0.67,140.81,140.78,3.50642971]
[1763504171157,0.67,140.81,140.8,3.50642971]
[1763504172267,0.67,140.81,140.78,3.50642971]
[1763504174089,0.67,140.81,140.77,3.50642971]
[1763504174575,3.50642971,140.8,140.71,0.21]
[1763504174777,0.72,140.79,140.76,3.50642971]
[1763504176167,0.72,140.79,140.74,12.66]
[1763504176373,0.72,140.79,140.75,3.50642971]
[1763504177079,0.72,140.79,140.74,12.66]
[1763504177281,0.72,140.79,140.76,3.50642971]
[1763504178269,0.72,140.79,140.74,12.66]
[1763504178586,0.72,140.79,140.74,7.72642971]
[1763504178893,18.12096,140.77,140.74,3.50642971]
[1763504179081,4.22642971,140.79,140.74,3.50642971]
[1763504179386,0.72,140.78,140.73,3.50642971]
[1763504179580,0.72,140.78,140.74,3.50642971]
[1763504180905,0.72,140.78,140.72,16.88]
[1763504181199,18.12096,140.76,140.73,3.50642971]
[1763504181572,0.72,140.75,140.73,3.50642971]
[1763504183992,18.12096,140.76,140.74,3.50642971]
[1763504184495,18.84096,140.76,140.74,3.50642971]
[1763504184674,0.72,140.76,140.74,3.50642971]
[1763504184870,18.84096,140.76,140.74,3.50642971]
[1763504185286,18.84096,140.76,140.73,3.50642971]
[1763504185600,0.72,140.76,140.74,3.50642971]
[1763504188402,0.72,140.76,140.73,18.84096]
[1763504188579,18.84096,140.78,140.74,3.50642971]
[1763504188783,0.72,140.77,140.74,3.50642971]
[1763504189288,0.72,140.77,140.74,22.34738971]
[1763504189799,0.72,140.77,140.73,3.50642971]
[1763504189997,0.72,140.77,140.75,3.50642971]
[1763504190379,0.72,140.77,140.74,3.50642971]
[1763504191604,0.72,140.79,140.76,3.50642971]
[1763504191807,0.72,140.78,140.77,3.50642971]
[1763504192186,0.72,140.78,140.76,3.50642971]
[1763504195782,0.72,140.78,140.77,3.50642971]
[1763504195983,18.12096,140.8,140.77,3.50642971]
[1763504196297,0.72,140.79,140.77,3.50642971]
[1763504199596,0.72,140.79,140.78,3.50642971]
[1763504202007,0.72,140.81,140.78,7.72642971]
[1763504202204,0.72,140.81,140.8,3.50642971]
[1763504202792,0.67,140.82,140.8,3.50642971]
[1763504202990,0.67,140.84,140.81,7.72642971]
[1763504203208,5.95923102,140.87,140.83,3.50642971]
[1763504203394,18.12096,140.84,140.83,3.50642971]
[1763504203907,18.79096,140.84,140.83,3.50642971]
[1763504204597,0.67,140.85,140.83,3.50642971]
[1763504204795,0.67,140.85,140.84,2.24194911]
[1763504206100,4.32,140.88,140.84,2.24194911]
[1763504206303,0.67,140.87,140.85,2.24194911]
[1763504206485,0.67,140.87,140.86,2.24194911]
[1763504206687,18.79096,140.87,140.85,2.24194911]
[1763504207109,18.12096,140.87,140.85,6.56194911]
[1763504207312,0.67,140.86,140.85,6.56194911]
[1763504208206,0.67,140.86,140.85,2.24194911]
[1763504209488,0.67,140.86,140.84,10.78194911]
[1763504209489,0.67,140.86,140.84,6.56194911]
[1763504209703,0.67,140.86,140.83,4.22]
[1763504209992,0.67,140.86,140.83,10.78194911]
[1763504212832,2.24194911,140.85,140.83,6.56194911]
[1763504213006,18.12096,140.84,140.79,6.46194911]
[1763504213194,18.79096,140.84,140.81,10.78194911]
[1763504213389,0.67,140.83,140.81,10.78194911]
[1763504214099,0.67,140.83,140.79,6.67194911]
[1763504214411,0.67,140.83,140.8,10.78194911]
[1763504219006,0.67,140.83,140.79,6.46194911]
[1763504219202,2.91194911,140.83,140.76,0.21]
[1763504219403,2.24194911,140.82,140.79,10.78194911]
[1763504219601,2.91194911,140.82,140.78,4.22]
[1763504219802,0.67,140.81,140.78,22.34096]
[1763504220522,18.12096,140.84,140.78,22.34096]
[1763504220523,2.24194911,140.84,140.78,24.58290911]
[1763504220721,0.1,140.88,140.83,2.24194911]
[1763504220909,0.67,140.87,140.84,6.46194911]
[1763504221105,0.67,140.87,140.84,4.22]
[1763504221509,0.67,140.87,140.84,7.06687377]
[1763504221906,0.67,140.87,140.84,4.22]
[1763504222506,0.67,140.87,140.85,2.24194911]
[1763504222713,0.1,140.88,140.86,2.24194911]
[1763504223016,0.77,140.88,140.86,2.24194911]
[1763504224101,0.1,140.88,140.87,2.24194911]
[1763504224622,0.1,140.88,140.87,6.67194911]
[1763504227624,0.1,140.88,140.87,25.42857324]
[1763504227825,0.1,140.9,140.87,25.42857324]
[1763504228009,0.1,140.9,140.89,2.24194911]
[1763504228523,0.1,140.92,140.9,9.78882769]
[1763504228824,0.1,140.92,140.91,6.46194911]
[1763504229000,0.1,140.92,140.91,6.67194911]
[1763504229202,0.1,140.92,140.91,16.4607768]
[1763504229609,0.67,140.99,140.91,34.5817368]
[1763504229804,0.67,140.99,140.97,2.24194911]
[1763504230325,0.67,141.01,140.98,2.24194911]
[1763504230628,0.67,141.01,140.99,2.24194911]
[1763504232721,0.67,141.01,140.98,6.22]
[1763504234226,2.24194911,140.99,140.94,2.24194911]
[1763504234418,2.91194911,141.01,140.95,2.24194911]
[1763504234616,0.72,141.0,140.95,2.24194911]
[1763504234815,0.72,141.0,140.96,2.24194911]
[1763504235823,0.72,141.0,140.97,2.24194911]
[1763504237225,0.72,141.0,140.96,8.46194911]
[1763504240426,0.72,141.0,140.97,2.24194911]
[1763504240635,18.12096,141.03,140.97,2.24194911]
[1763504240807,0.72,141.02,141.0,2.24194911]
[1763504241411,0.66,141.03,141.01,2.24194911]
[1763504242026,0.66,141.03,141.01,6.44194911]
[1763504242505,0.66,141.03,141.01,4.2]
[1763504242711,0.66,141.03,141.0,2.24194911]
[1763504244028,0.66,141.03,141.0,11.41974555]
[1763504245029,2.24194911,141.02,140.94,4.2]
[1763504245246,2.24194911,141.02,140.97,2.24194911]
[1763504245422,0.66,141.01,140.97,2.24194911]
[1763504246417,0.66,141.01,140.96,13.66169466]
[1763504247142,2.90194911,141.01,140.96,2.24194911]
[1763504247339,2.90194911,141.01,140.95,2.24194911]
[1763504247539,0.66,141.0,140.95,20.36290911]
[1763504247758,0.66,141.0,140.95,2.24194911]
[1763504248038,18.12096,140.99,140.96,2.24194911]
[1763504248246,18.78096,140.99,140.97,2.24194911]
[1763504248618,0.66,140.98,140.96,2.24194911]
[1763504249726,0.66,140.98,140.95,2.24194911]
[1763504249924,6.44194911,141.02,140.96,2.24194911]
[1763504250111,11.78882769,141.09,141.0,2.24194911]
[1763504250112,0.66,141.03,141.0,2.24194911]
[1763504250319,0.66,141.03,140.99,2.24194911]
[1763504250527,0.66,141.03,140.98,16.2307768]
[1763504251143,0.66,141.03,140.99,2.24194911]
[1763504252759,4.2,141.08,141.02,2.24194911]
[1763504252935,18.78096,141.05,141.03,2.24194911]
[1763504253134,0.66,141.05,141.02,2.24194911]
[1763504253337,0.66,141.04,141.02,2.24194911]
[1763504253638,0.66,141.04,141.01,6.44194911]
[1763504254145,0.66,141.04,141.01,4.2]
[1763504254654,0.66,141.04,141.01,6.44194911]
[1763504255532,0.66,141.04,141.01,4.2]
[1763504255757,0.66,141.04,141.01,6.44194911]
[1763504257048,0.66,141.04,140.99,4.2]
[1763504257259,2.90194911,141.04,140.99,6.44194911]
[1763504257455,2.90194911,141.04,140.99,16.2307768]
[1763504257658,0.66,141.03,140.99,16.2307768]
[1763504262734,0.66,141.03,141.0,2.24194911]
[1763504265549,0.66,141.03,141.02,2.24194911]
[1763504266639,0.66,141.03,141.01,2.24194911]
[1763504266851,0.66,141.03,141.01,3.4944878]
[1763504269043,0.66,141.03,141.0,3.4944878]
[1763504269363,0.66,141.03,140.99,3.4944878]
[1763504272655,0.66,141.03,140.99,2.9984878]
[1763504273053,0.66,141.03,140.98,7.6944878]
[1763504273448,0.66,141.03,140.98,4.2]
[1763504273644,0.66,141.03,140.98,7.6944878]
[1763504274175,0.66,141.03,140.98,3.4944878]
[1763504274546,3.4944878,141.02,140.96,3.4944878]
[1763504274750,0.66,141.03,140.98,3.4944878]
[1763504274952,0.71,141.02,140.98,3.4944878]
[1763504275178,0.71,141.02,140.99,3.4944878]
[1763504276377,0.71,141.02,140.98,3.4944878]
[1763504276671,0.71,141.02,140.96,18.12096]
[1763504276672,0.71,141.02,140.97,3.4944878]
[1763504277048,4.2044878,141.02,140.97,3.4944878]
[1763504277278,4.2044878,141.02,140.96,3.4944878]
[1763504277461,0.71,141.01,140.96,3.4944878]
[1763504279479,0.71,141.01,140.97,3.4944878]
[1763504281177,25.8154478,141.04,140.98,3.7044878]
[1763504281383,0.71,141.03,140.99,3.4944878]
[1763504284266,0.71,141.03,141.0,3.4944878]
[1763504285384,0.71,141.03,141.01,3.4944878]
[1763504285582,0.71,141.03,141.0,3.4944878]
[1763504285776,0.71,141.03,141.01,3.4944878]
[1763504286092,0.71,141.05,141.02,3.4944878]
[1763504286279,23.31829221,141.07,141.03,3.4944878]
[1763504286579,0.71,141.04,141.03,3.4944878]
[1763504288482,0.71,141.07,141.03,3.7044878]
[1763504288778,0.71,141.07,141.0,18.12096]
[1763504288779,0.71,141.09,141.06,3.4944878]
[1763504288987,0.71,141.09,141.08,3.4944878]
[1763504289185,4.78316842,141.12,141.08,3.4944878]
[1763504289485,0.71,141.12,141.1,3.4944878]
[1763504289662,0.71,141.11,141.1,3.4944878]
[1763504290178,0.71,141.11,141.04,0.21]
[1763504290379,0.71,141.11,141.08,3.4944878]
[1763504291383,0.71,141.11,141.09,3.4944878]
[1763504291971,0.71,141.11,141.08,3.4944878]
[1763504292289,0.71,141.11,141.07,3.4944878]
[1763504293471,0.71,141.11,141.04,4.2]
[1763504293677,0.71,141.11,141.06,3.4944878]
[1763504294194,0.71,141.11,141.07,3.4944878]
[1763504295089,0.71,141.11,141.06,3.4944878]
[1763504296488,4.2044878,141.11,141.05,3.4944878]
[1763504296700,0.71,141.1,141.05,3.4944878]
[1763504296901,0.71,141.1,141.03,3.4944878]
[1763504296902,3.4944878,141.09,141.03,3.4944878]
[1763504297205,22.3254478,141.1,141.04,3.4944878]
[1763504297398,0.71,141.09,141.04,3.4944878]
[1763504297579,4.2044878,141.09,141.03,3.4944878]
[1763504298073,0.71,141.08,141.03,3.4944878]
[1763504298997,9.78882769,141.13,141.06,3.4944878]
[1763504299203,0.71,141.1,141.07,3.4944878]
[1763504301507,0.71,141.1,141.06,3.4944878]
[1763504302504,0.71,141.1,141.05,3.4944878]
[1763504302702,0.71,141.1,141.06,3.4944878]
[1763504303403,0.68,141.1,141.07,3.4944878]
[1763504303707,0.68,141.12,141.07,3.7044878]
[1763504304286,0.68,141.12,141.08,3.4944878]
[1763504305784,0.68,141.12,141.07,3.4944878]
[1763504306000,0.68,141.12,141.06,4.2]
[1763504306308,0.68,141.14,141.09,3.4944878]
[1763504306520,0.68,141.14,141.07,0.21]
[1763504306521,0.68,141.13,141.1,3.4944878]
[1763504307712,0.68,141.13,141.09,3.4944878]
[1763504314091,0.68,141.13,141.1,3.4944878]
[1763504314605,0.1,141.15,141.11,3.4944878]
[1763504314807,0.78,141.15,141.12,3.4944878]
[1763504315408,0.78,141.15,141.07,26.07723598]
[1763504315409,0.78,141.15,141.13,3.4944878]
[1763504319500,0.1,141.15,141.14,3.4944878]
[1763504326927,0.1,141.15,141.14,2.23207231]
[1763504329530,0.79,141.15,141.11,4.2]
[1763504329745,0.79,141.15,141.11,0.21]
[1763504330038,0.79,141.15,141.12,2.23207231]
[1763504330369,0.79,141.15,141.13,2.23207231]
[1763504331139,0.79,141.15,141.12,2.23207231]
[1763504334150,0.79,141.15,141.1,24.55303231]
[1763504334343,0.79,141.15,141.11,2.23207231]
[1763504334543,0.79,141.15,141.1,6.43207231]
[1763504335436,0.79,141.15,141.13,2.23207231]
[1763504336556,0.79,141.15,141.12,2.23207231]
[1763504337653,0.79,141.15,141.13,2.23207231]
[1763504339126,0.79,141.15,141.12,2.23207231]
[1763504340859,0.79,141.15,141.11,4.2]
[1763504340860,0.79,141.15,141.11,6.43207231]
[1763504342455,0.79,141.15,141.11,4.2]
[1763504342757,0.79,141.15,141.09,6.43207231]
[1763504343056,0.79,141.15,141.09,9.27328408]
[1763504343633,0.79,141.15,141.1,2.23207231]
[1763504344366,0.79,141.15,141.09,2.84121177]
[1763504344532,0.79,141.15,141.11,2.23207231]
[1763504344737,0.79,141.15,141.12,2.23207231]
[1763504345141,0.79,141.15,141.13,2.23207231]
[1763504345542,0.79,141.15,141.08,7.04121177]
[1763504345762,0.79,141.15,141.12,2.23207231]
[1763504346857,0.79,141.15,141.14,2.23207231]
[1763504346858,0.1,141.15,141.14,2.23207231]
[1763504358461,0.1,141.15,141.14,5.07247706]
[1763504359574,0.1,141.15,141.14,5.28247706]
[1763504359761,0.1,141.18,141.17,2.23207231]
[1763504359962,0.1,141.18,141.17,6.64207231]
[1763504360405,0.1,141.18,141.17,9.4816705]
[1763504360676,0.1,141.18,141.17,6.43207231]
[1763504361173,0.1,141.18,141.17,4.2]
[1763504361174,0.75,141.18,141.17,4.2]
[1763504361872,0.75,141.18,141.17,6.43207231]
[1763504362477,0.75,141.18,141.17,4.2]
[1763504363869,0.75,141.18,141.16,6.43207231]
[1763504364485,0.75,141.18,141.17,2.23207231]
[1763504364884,0.1,141.18,141.17,2.23207231]
[1763504365376,0.1,141.18,141.17,5.0716705]
[1763504366388,0.1,141.18,141.17,6.43207231]
[1763504370582,2.42800319,141.25,141.17,6.43207231]
[1763504370779,2.42800319,141.25,141.18,2.23207231]
[1763504371293,2.42800319,141.25,141.19,2.23207231]
[1763504371493,0.19593088,141.25,141.2,6.43207231]
[1763504372066,0.19593088,141.25,141.21,2.23207231]
[1763504372290,0.19593088,141.25,141.2,4.2]
[1763504372291,0.19593088,141.25,141.22,2.23207231]
[1763504372501,0.66,141.24,141.17,4.85800319]
[1763504372672,2.23207231,141.23,141.18,4.2]
[1763504372990,2.89207231,141.24,141.18,6.43207231]
[1763504373180,0.66,141.23,141.18,6.43207231]
[1763504375505,0.66,141.23,141.19,2.23207231]
[1763504376093,0.66,141.23,141.2,2.23207231]
[1763504381810,0.66,141.23,141.19,4.2]
[1763504382024,0.66,141.23,141.15,2.23207231]
[1763504382025,2.23207231,141.22,141.15,2.23207231]
[1763504382326,2.23207231,141.21,141.15,5.07207373]
[1763504382489,2.23207231,141.21,141.15,4.2]
[1763504382805,0.67,141.2,141.13,6.43207231]
[1763504383010,2.23207231,141.19,141.13,4.2]
[1763504383184,2.23207231,141.18,141.13,4.2]
[1763504383378,2.90207231,141.19,141.13,4.2]
[1763504383585,2.23207231,141.18,141.13,4.2]
[1763504383785,2.90207231,141.18,141.13,4.2]
[1763504384006,0.67,141.17,141.13,4.2]
[1763504384505,0.67,141.17,141.11,16.24128991]
[1763504384809,0.67,141.17,141.12,2.23207231]
[1763504385907,0.67,141.17,141.12,2.90207231]
[1763504386295,0.67,141.19,141.15,2.23207231]
[1763504386811,0.67,141.19,141.15,3.48711494]
[1763504387005,0.67,141.19,141.14,3.48711494]
[1763504387417,0.67,141.19,141.13,4.15711494]
[1763504388994,3.48711494,141.18,141.11,8.35711494]
[1763504389197,3.48711494,141.17,141.12,4.2]
[1763504389400,0.67,141.16,141.12,4.2]
[1763504391513,0.67,141.16,141.11,4.15711494]
[1763504391718,4.15711494,141.16,141.09,20.44128991]
[1763504391894,3.48711494,141.15,141.09,3.48711494]
[1763504392095,4.15711494,141.15,141.09,3.48711494]
[1763504392415,0.67,141.14,141.09,3.48711494]
[1763504392595,0.67,141.14,141.09,4.15711494]